bitfinex-derivatives/quotes_SOLF0:USTF0_20260118
["timestamp","ask_amount","ask_price","bid_price","bid_amount"]
[1768762613485,14.31485837,142.98,142.93,0.05284014]
[1768762626193,14.31485837,143.0,142.93,14.70342624]
[1768762626400,16.07065751,143.0,142.93,0.05284014]
[1768762626598,14.31485837,143.0,142.92,6.2992]
[1768762626798,14.31485837,142.98,142.92,6.2992]
[1768762627003,14.31485837,142.98,142.95,0.04754642]
[1768762627799,14.31485837,142.98,142.91,14.6505861]
[1768762628001,14.36042834,142.98,142.91,14.6505861]
[1768762628899,14.36042834,142.98,142.9,8.23473415]
[1768762628900,14.31485837,142.97,142.9,8.23473415]
[1768762629101,14.31485837,142.97,142.9,6.47893501]
[1768762629400,16.07065751,142.97,142.9,6.47893501]
[1768762629801,14.35975295,142.95,142.89,21.12952111]
[1768762630004,5.6109295,142.95,142.89,21.12952111]
[1768762630201,5.6109295,142.95,142.92,0.04995535]
[1768762631195,1.75579914,142.95,142.89,6.47893501]
[1768762631401,1.80600542,142.95,142.88,6.47893501]
[1768762631602,0.05020628,142.95,142.88,6.47893501]
[1768762631803,1.75579914,142.94,142.88,6.47893501]
[1768762632004,14.31485837,142.93,142.88,6.47893501]
[1768762632906,0.0516742,142.92,142.88,6.47893501]
[1768762634302,0.0516742,142.92,142.87,21.12952111]
[1768762639808,0.0516742,142.92,142.87,14.6505861]
[1768762641216,14.36653257,142.92,142.87,14.6505861]
[1768762641414,14.36653257,142.92,142.86,12.78083501]
[1768762641914,14.36653257,142.92,142.86,27.43142111]
[1768762643221,16.12233171,142.92,142.86,27.43142111]
[1768762648319,14.36653257,142.92,142.86,27.43142111]
[1768762649916,14.36653257,142.92,142.87,6.47893501]
[1768762653310,20.66603257,142.92,142.86,21.12952111]
[1768762662936,14.36653257,142.92,142.86,21.12952111]
[1768762667034,15.0417712,142.91,142.85,6.47893501]
[1768762668934,15.0417712,142.9,142.85,6.47893501]
[1768762669235,15.0417712,142.9,142.84,21.10493195]
[1768762669836,0.04581901,142.88,142.84,21.10493195]
[1768762671441,15.08759021,142.88,142.83,6.47893501]
[1768762671833,15.08759021,142.88,142.82,263.88492512]
[1768762672435,15.08759021,142.88,142.82,14.62599694]
[1768762672436,14.63075527,142.87,142.82,14.62599694]
[1768762672636,16.38704835,142.87,142.81,6.47893501]
[1768762672836,16.38704835,142.87,142.8,15.76480753]
[1768762673441,14.63075527,142.86,142.8,15.76480753]
[1768762673641,0.05016919,142.85,142.8,15.76480753]
[1768762675540,14.63075527,142.84,142.77,28.54944254]
[1768762675742,14.63075527,142.84,142.77,23.82680061]
[1768762676542,0.04940169,142.82,142.77,23.82680061]
[1768762678346,0.04940169,142.82,142.78,15.76480753]
[1768762679544,14.63075527,142.84,142.78,15.76480753]
[1768762680951,6.3013,142.88,142.82,17.52110061]
[1768762681148,14.63075527,142.89,142.82,17.52110061]
[1768762682451,14.63075527,142.89,142.84,15.80998793]
[1768762684249,6.3004,142.9,142.84,17.56628101]
[1768762684651,6.3004,142.9,142.84,15.80998793]
[1768762684849,6.3004,142.9,142.84,17.56628101]
[1768762687954,14.63075527,142.91,142.84,17.56628101]
[1768762688455,14.63075527,142.91,142.84,15.80998793]
[1768762688956,16.38704835,142.91,142.84,15.80998793]
[1768762689254,14.63075527,142.91,142.84,15.80998793]
[1768762689452,16.38704835,142.91,142.84,15.80998793]
[1768762690155,1.75629308,142.89,142.84,15.80998793]
[1768762690460,14.63075527,142.9,142.84,15.80998793]
[1768762691956,0.04604422,142.88,142.84,15.80998793]
[1768762693458,0.04604422,142.88,142.84,22.11258793]
[1768762693658,6.2993,142.93,142.84,22.11258793]
[1768762693659,14.63075527,142.92,142.85,17.52110061]
[1768762694353,14.63075527,142.94,142.86,15.76480753]
[1768762694858,14.63075527,142.94,142.87,22.06620753]
[1768762695158,14.63075527,142.94,142.89,0.0496125]
[1768762697356,14.63075527,142.94,142.89,15.81442003]
[1768762701761,14.63075527,142.94,142.89,0.0496125]
[1768762707664,15.55063837,142.92,142.89,0.0496125]
[1768762708556,1.75629308,142.93,142.89,0.0496125]
[1768762709160,17.30693145,142.93,142.89,0.0496125]
[1768762714367,15.55063837,142.92,142.84,28.84179329]
[1768762714672,15.55063837,142.9,142.84,22.38006448]
[1768762715570,15.55063837,142.9,142.84,16.07746448]
[1768762716066,15.55063837,142.9,142.82,22.43888332]
[1768762716267,0.05025067,142.88,142.82,22.43888332]
[1768762716673,16.33180157,142.88,142.82,16.13538332]
[1768762719074,16.33180157,142.88,142.8,22.43978332]
[1768762719376,16.2815509,142.87,142.8,22.43978332]
[1768762719767,16.2815509,142.87,142.81,16.13538332]
[1768762720472,0.04626189,142.85,142.81,16.13538332]
[1768762721874,0.04626189,142.85,142.79,16.13538332]
[1768762722075,16.32781279,142.85,142.79,16.13538332]
[1768762724872,18.08410587,142.85,142.79,16.13538332]
[1768762726879,16.32781279,142.85,142.79,16.13538332]
[1768762746389,0.04626189,142.85,142.79,16.13538332]
[1768762749589,0.04626189,142.85,142.8,15.51430588]
[1768762763202,0.04626189,142.85,142.8,21.9824163]
[1768762763806,0.04626189,142.85,142.81,16.0999389]
[1768762764904,22.39574878,142.85,142.79,22.56804932]
[1768762765604,22.39574878,142.85,142.8,16.0999389]
[1768762766205,22.39574878,142.85,142.8,22.56804932]
[1768762767406,24.10782449,142.84,142.79,1.042e-05]
[1768762767611,16.04688689,142.83,142.78,16.0999389]
[1768762768608,0.05180863,142.82,142.78,16.0999389]
[1768762771318,0.05180863,142.82,142.76,16.0999389]
[1768762772203,0.05180863,142.82,142.76,17.8578765]
[1768762776212,0.05180863,142.82,142.76,16.0999389]
[1768762776410,0.05180863,142.82,142.76,17.8578765]
[1768762776716,0.05180863,142.82,142.76,16.0999389]
[1768762777318,6.35580863,142.82,142.76,16.0999389]
[1768762777620,22.33911591,142.82,142.76,16.0999389]
[1768762778715,17.74124488,142.81,142.74,15.85799789]
[1768762778914,17.74124488,142.79,142.72,15.85799789]
[1768762779718,0.04517049,142.77,142.72,15.85799789]
[1768762784117,17.74124488,142.81,142.73,15.85799789]
[1768762785923,17.74124488,142.81,142.74,15.85799789]
[1768762787920,24.04644488,142.79,142.72,15.85799789]
[1768762788126,1.7579376,142.77,142.72,15.85799789]
[1768762788823,17.74124488,142.78,142.72,15.85799789]
[1768762789030,17.74324208,142.78,142.72,15.85799789]
[1768762790532,24.04894208,142.78,142.72,15.85799789]
[1768762793934,22.28900728,142.78,142.72,15.85799789]
[1768762794142,1.7599348,142.77,142.72,15.85799789]
[1768762796236,15.35320912,142.76,142.7,15.12137912]
[1768762796434,1.7599348,142.75,142.7,15.12137912]
[1768762796934,15.35320912,142.81,142.71,15.12137912]
[1768762797131,17.11314392,142.81,142.73,15.12137912]
[1768762797835,23.41744392,142.81,142.73,15.12137912]
[1768762801144,1.7599348,142.82,142.76,15.12137912]
[1768762801937,21.65690912,142.83,142.76,15.12137912]
[1768762801938,23.41684392,142.83,142.76,15.12137912]
[1768762802137,21.65690912,142.83,142.76,15.12137912]
[1768762803038,21.65590912,142.85,142.78,15.16804848]
[1768762803348,17.11314392,142.87,142.8,15.12137912]
[1768762803738,6.3021,142.86,142.8,15.12137912]
[1768762803947,1.7599348,142.85,142.8,15.12137912]
[1768762804544,21.65530912,142.86,142.8,15.12137912]
[1768762804740,1.7599348,142.85,142.81,0.04632321]
[1768762806140,23.41524392,142.86,142.81,0.04632321]
[1768762808044,21.65530912,142.86,142.81,0.04632321]
[1768762808346,15.35320912,142.86,142.81,0.04632321]
[1768762808544,15.35320912,142.86,142.81,15.16770233]
[1768762809048,6.3017,142.87,142.81,15.16770233]
[1768762809245,8.0616348,142.87,142.81,15.16770233]
[1768762810047,23.41484392,142.87,142.81,15.16770233]
[1768762810549,362.8213,142.91,142.81,15.16770233]
[1768762810550,23.41394392,142.89,142.81,15.16770233]
[1768762810745,15.35320912,142.88,142.81,15.16770233]
[1768762811044,1.7599348,142.85,142.78,21.42677912]
[1768762811251,17.11314392,142.85,142.78,15.12137912]
[1768762811644,17.11314392,142.83,142.76,15.12137912]
[1768762813947,17.11314392,142.83,142.78,0.04948021]
[1768762814555,15.35320912,142.83,142.78,0.04948021]
[1768762814757,0.04607413,142.82,142.78,0.04948021]
[1768762818358,0.04607413,142.82,142.78,15.17085933]
[1768762827560,15.04489759,143.04,142.95,15.37376723]
[1768762827861,16.80483239,143.04,142.93,17.13370203]
[1768762828063,15.04489759,143.03,142.93,15.37376723]
[1768762828457,15.04489759,142.98,142.9,15.37376723]
[1768762828658,1.7599348,142.99,142.91,6.92589131]
[1768762828860,1.7599348,142.99,142.93,0.04866215]
[1768762829056,1.7599348,142.99,142.94,6.92589131]
[1768762829261,1.7599348,142.99,142.95,6.92589131]
[1768762829460,1.7599348,142.99,142.93,0.04866215]
[1768762829765,1.7599348,142.97,142.9,15.37376723]
[1768762830665,16.80483239,142.97,142.9,15.37376723]
[1768762834258,16.80483239,142.97,142.88,15.37376723]
[1768762834462,16.80483239,142.97,142.88,17.13370203]
[1768762835467,15.04489759,142.97,142.88,17.13370203]
[1768762836871,15.04489759,142.97,142.9,1.7599348]
[1768762837172,15.04489759,142.97,142.9,17.02765853]
[1768762837371,99.6993348,143.0,142.92,17.02765853]
[1768762837372,15.33426206,142.99,142.92,17.02765853]
[1768762837769,15.33426206,143.01,142.94,17.02765853]
[1768762841570,15.33426206,143.01,142.95,6.66826409]
[1768762841773,15.33426206,143.01,142.96,8.42819889]
[1768762841973,15.33426206,143.01,142.97,6.66826409]
[1768762842173,15.33426206,143.01,142.98,6.409e-05]
[1768762842373,15.33426206,143.01,142.96,1.7599348]
[1768762845073,15.33426206,143.0,142.91,15.26772373]
[1768762845267,15.33426206,143.0,142.92,1.7599348]
[1768762845981,15.33426206,143.0,142.92,17.02765853]
[1768762846779,21.63046206,143.0,142.92,17.02765853]
[1768762847776,21.63046206,143.0,142.94,1.7599348]
[1768762848882,21.63046206,143.0,142.94,1.75418311]
[1768762849574,15.33426206,143.0,142.96,1.75418311]
[1768762849982,15.33426206,143.0,142.95,1.75418311]
[1768762850176,15.33426206,143.0,142.94,15.26772373]
[1768762850177,15.33426206,143.0,142.94,1.75418311]
[1768762851885,15.33426206,143.0,142.92,6.2992]
[1768762852088,15.33426206,142.99,142.93,1.75418311]
[1768762853886,15.33426206,142.99,142.93,17.31574101]
[1768762854075,15.33426206,142.99,142.94,6.62256078]
[1768762854273,15.33426206,142.99,142.95,6.62256078]
[1768762854486,15.33426206,142.99,142.96,6.62256078]
[1768762854786,15.33426206,142.99,142.93,17.31574101]
[1768762855178,6.296,143.0,142.93,15.5615579]
[1768762855384,6.296,143.0,142.94,1.75418311]
[1768762855891,16.25454186,143.01,142.94,1.75418311]
[1768762856185,16.25454186,143.01,142.94,17.31574101]
[1768762857276,16.25454186,143.01,142.96,1.75418311]
[1768762862290,16.25454186,143.01,142.94,17.31574101]
[1768762862486,16.25454186,143.01,142.94,1.75418311]
[1768762862691,16.25454186,143.01,142.91,72.5615579]
[1768762862692,18.00872497,143.0,142.92,1.75418311]
[1768762862890,18.00872497,143.0,142.92,17.31574101]
[1768762863889,6.2965,142.99,142.92,17.31574101]
[1768762865091,22.55104186,142.99,142.92,17.31574101]
[1768762865488,16.25454186,142.99,142.92,17.31574101]
[1768762865889,16.25454186,143.01,142.94,17.31574101]
[1768762866589,16.25454186,143.01,142.95,6.48861626]
[1768762866896,16.25454186,143.0,142.96,6.48861626]
[1768762867091,16.25454186,143.0,142.94,15.5615579]
[1768762871297,18.00872497,143.0,142.92,23.61494101]
[1768762871600,18.00872497,143.0,142.92,21.8607579]
[1768762871995,18.00872497,143.0,142.92,15.5615579]
[1768762875105,18.00872497,143.0,142.92,21.96052837]
[1768762875404,16.25454186,143.0,142.92,23.71471148]
[1768762875599,16.25454186,143.0,142.93,15.5615579]
[1768762879301,16.25454186,143.0,142.93,21.96052837]
[1768762879601,18.00872497,143.01,142.94,15.5615579]
[1768762880800,18.00872497,142.99,142.92,21.96052837]
[1768762883204,18.00872497,142.99,142.92,15.5615579]
[1768762884004,23.09605716,142.98,142.92,15.5615579]
[1768762885606,23.09605716,142.98,142.92,21.96052837]
[1768762891406,16.79905716,142.97,142.92,6.39897047]
[1768762892917,23.09635716,142.97,142.92,6.39897047]
[1768762893419,6.2979,142.96,142.9,24.18424678]
[1768762893715,23.09695716,142.96,142.9,15.56715549]
[1768762895518,16.79905716,142.94,142.88,25.93842989]
[1768762895816,16.79905716,142.94,142.88,17.3213386]
[1768762896710,6.2984,142.95,142.88,17.3213386]
[1768762897918,16.79905716,142.96,142.88,17.3213386]
[1768762898717,23.09675716,142.96,142.88,17.3213386]
[1768762899616,23.09675716,142.96,142.88,23.6223386]
[1768762900928,16.79905716,142.96,142.89,23.44425374]
[1768762904713,16.79905716,142.96,142.9,17.14365374]
[1768762908922,16.79905716,142.96,142.92,0.04692031]
[1768762909110,0.04554922,142.94,142.92,0.04692031]
[1768762915520,17.41595404,142.98,142.92,16.77085389]
[1768762917127,17.41595404,143.0,142.93,16.72393358]
[1768762917726,17.41595404,143.0,142.94,16.72393358]
[1768762917926,17.41595404,143.0,142.95,0.04627143]
[1768762926836,25.46715034,143.0,142.95,0.04627143]
[1768762927036,17.41595404,142.99,142.95,0.04627143]
[1768762928639,17.41595404,142.99,142.92,16.72393358]
[1768762929941,17.41595404,142.99,142.92,23.02323358]
[1768762934143,17.41595404,142.99,142.93,6.2988]
[1768762937647,17.41595404,142.99,142.93,23.02273358]
[1768762938644,17.41595404,142.99,142.93,6.2988]
[1768762938949,17.41595404,142.99,142.91,23.02343358]
[1768762939142,19.17105034,142.99,142.91,23.02343358]
[1768762939343,19.17105034,142.99,142.91,16.72393358]
[1768762940245,19.17105034,142.99,142.9,18.47902988]
[1768762940445,19.17105034,142.99,142.9,75.47902988]
[1768762940845,19.17105034,142.99,142.92,6.2993]
[1768762944149,18.09199455,142.98,142.92,6.2993]
[1768762946954,16.33689825,142.98,142.92,6.2993]
[1768762947249,18.09199455,142.98,142.92,6.2993]
[1768762948155,16.33689825,142.98,142.92,6.2993]
[1768762950954,16.33689825,142.98,142.92,22.59979854]
[1768762951749,16.33689825,142.98,142.93,16.30049854]
[1768762951955,288.88799455,143.0,142.93,16.30049854]
[1768762952356,16.33689825,142.99,142.93,16.30049854]
[1768762953555,16.33689825,142.99,142.93,22.78037421]
[1768762955557,16.33689825,142.99,142.94,6.47987567]
[1768762955752,16.33689825,142.99,142.93,22.78037421]
[1768762956152,18.09199455,142.99,142.93,22.78037421]
[1768762958556,18.09199455,142.99,142.93,6.47987567]
[1768762960961,17.70358246,142.98,142.93,6.47987567]
[1768762962151,8.0514963,142.99,142.93,23.98718746]
[1768762962662,25.75507876,142.99,142.93,23.98718746]
[1768762962961,23.99998246,142.99,142.93,23.98718746]
[1768762963364,25.75507876,142.99,142.93,23.98718746]
[1768762965459,17.70358246,142.98,142.93,23.98718746]
[1768762970069,272.5514963,142.99,142.94,17.50731179]
[1768762970870,290.25461934,142.99,142.94,17.50731179]
[1768762971571,288.49998246,142.99,142.94,17.50731179]
[1768762971770,290.25461934,142.99,142.94,17.50731179]
[1768762971972,290.25461934,142.99,142.93,6.47987567]
[1768762975976,290.25461934,142.99,142.94,6.47987567]
[1768762976579,16.26896487,142.98,142.94,6.47987567]
[1768762976877,280.76896487,142.98,142.94,6.47987567]
[1768762977679,16.26896487,142.98,142.94,6.47987567]
[1768762977882,264.5,142.97,142.94,6.47987567]
[1768762978481,16.26896487,142.98,142.94,6.47987567]
[1768762978878,264.5,142.97,142.94,6.47987567]
[1768762980177,16.26896487,142.96,142.92,8.61709129]
[1768762980382,16.26896487,142.96,142.9,26.36325529]
[1768762981079,16.26896487,142.96,142.9,17.746164]
[1768762981285,16.26896487,142.96,142.9,24.046364]
[1768762985480,16.26896487,142.96,142.9,17.746164]
[1768762989989,0.04747406,142.94,142.92,0.04531319]
[1768762990688,0.04747406,142.94,142.88,325.909917]
[1768762990886,0.04747406,142.94,142.88,317.29282571]
[1768762991081,16.31643893,142.94,142.88,317.29282571]
[1768762992091,16.31643893,142.94,142.89,17.746164]
[1768762992891,0.04747406,142.94,142.89,17.746164]
[1768762993589,16.26896487,142.96,142.9,17.746164]
[1768762993892,22.56596487,142.98,142.9,17.746164]
[1768762994092,18.02360175,142.98,142.92,17.746164]
[1768763000797,24.32040175,142.98,142.92,17.746164]
[1768763002606,17.98581614,142.97,142.92,17.746164]
[1768763002796,17.98581614,142.96,142.9,17.05007056]
[1768763003302,19.74045302,142.96,142.9,17.05007056]
[1768763005899,17.98581614,142.98,142.91,17.05007056]
[1768763006106,19.74045302,142.98,142.91,17.05007056]
[1768763006909,17.98581614,142.98,142.92,17.05007056]
[1768763008815,19.74045302,142.98,142.92,17.05007056]
[1768763017711,17.98581614,142.98,142.92,17.05007056]
[1768763017911,19.74045302,142.98,142.92,17.05007056]
[1768763019212,19.74045302,142.98,142.92,23.34937056]
[1768763023517,17.98581614,142.98,142.92,23.34937056]
[1768763023715,19.74045302,142.98,142.92,23.34937056]
[1768763027313,17.98581614,142.98,142.93,6.2988]
[1768763027521,19.74045302,142.98,142.93,6.2988]
[1768763031021,19.74079847,142.98,142.93,6.2988]
[1768763032921,19.74079847,142.98,142.94,6.2984]
[1768763038519,6.2949,143.03,142.94,17.95767388]
[1768763038719,1.75498233,143.0,142.95,6.298]
[1768763040628,19.12304551,143.0,142.95,6.298]
[1768763042627,17.36806318,143.17,143.08,17.95767388]
[1768763042928,17.36806318,143.15,143.08,17.95767388]
[1768763043127,17.36806318,143.15,143.09,6.62996804]
[1768763043327,17.36806318,143.22,143.1,17.95767388]
[1768763043528,17.36806318,143.22,143.07,97.8844]
[1768763043529,19.12304551,143.15,143.11,6.60385307]
[1768763043731,281.86806318,143.14,143.08,17.95767388]
[1768763044228,17.36806318,143.15,143.09,24.24917388]
[1768763044427,281.86806318,143.15,143.09,24.24917388]
[1768763044624,281.86806318,143.15,143.1,0.04897436]
[1768763045034,1.75498233,143.16,143.1,18.00664824]
[1768763045332,106.3,143.15,143.1,18.00664824]
[1768763046832,106.3,143.15,143.11,6.2907]
[1768763047936,229.02806318,143.16,143.11,6.2907]
[1768763048932,229.02806318,143.16,143.1,18.00664824]
[1768763049831,1.75498233,143.15,143.1,18.00664824]
[1768763050033,1.75498233,143.15,143.1,0.04897436]
[1768763050034,19.12304551,143.15,143.1,0.04897436]
[1768763050337,1.75498233,143.13,143.1,0.04897436]
[1768763051329,266.09498233,143.13,143.1,0.04897436]
[1768763052232,1.75498233,143.13,143.1,0.04897436]
[1768763052535,266.09498233,143.13,143.1,0.04897436]
[1768763053130,264.32,143.13,143.1,0.04897436]
[1768763053531,17.36806318,143.15,143.1,0.04897436]
[1768763053839,264.32,143.14,143.1,0.04897436]
[1768763054927,19.12304551,143.15,143.1,0.04897436]
[1768763055136,264.3,143.14,143.1,0.04897436]
[1768763058339,19.12304551,143.15,143.1,0.04897436]
[1768763058537,266.03498233,143.14,143.1,0.04897436]
[1768763061042,264.28,143.14,143.11,6.44507024]
[1768763061243,266.03498233,143.14,143.12,6.44507024]
[1768763061541,266.03498233,143.14,143.1,0.04897436]
[1768763062338,6.2878,143.19,143.11,16.13462839]
[1768763062546,264.24,143.22,143.14,16.13462839]
[1768763063242,264.24,143.21,143.17,6.33832339]
[1768763063436,240.8949,143.2,143.17,6.33832339]
[1768763063637,218.6164,143.2,143.17,6.33832339]
[1768763064350,18.03699468,143.23,143.17,6.33832339]
[1768763064552,264.22,143.22,143.17,6.33832339]
[1768763064744,264.22,143.21,143.17,6.33832339]
[1768763065250,18.03699468,143.23,143.17,6.33832339]
[1768763065446,264.22,143.22,143.17,6.33832339]
[1768763068652,264.18,143.21,143.17,6.33832339]
[1768763072759,18.03699468,143.23,143.17,6.33832339]
[1768763072964,230.6444,143.2,143.17,6.33832339]
[1768763073153,208.7659,143.2,143.17,6.33832339]
[1768763073359,187.7049,143.2,143.17,6.33832339]
[1768763073558,166.6459,143.2,143.17,6.33832339]
[1768763073758,155.9571,143.2,143.17,6.33832339]
[1768763075266,264.12,143.21,143.17,6.33832339]
[1768763081568,16.57863878,143.22,143.17,6.33832339]
[1768763081762,228.9357,143.2,143.17,6.33832339]
[1768763081966,205.2821,143.2,143.17,6.33832339]
[1768763082166,193.4553,143.2,143.17,6.33832339]
[1768763082566,170.8851,143.2,143.17,6.33832339]
[1768763082770,13.72748036,143.22,143.17,6.33832339]
[1768763082974,277.80748036,143.22,143.17,6.33832339]
[1768763083572,13.72748036,143.22,143.17,6.33832339]
[1768763083770,277.80748036,143.22,143.17,6.33832339]
[1768763084180,1.75498233,143.26,143.18,16.03211681]
[1768763084378,264.08,143.25,143.18,16.03211681]
[1768763084874,16.57863878,143.24,143.18,16.03211681]
[1768763085070,16.57863878,143.24,143.2,0.05132535]
[1768763085274,18.33362111,143.24,143.2,0.05132535]
[1768763087077,280.63863878,143.23,143.2,0.05132535]
[1768763094573,16.57863878,143.23,143.2,0.05132535]
[1768763094778,280.61863878,143.23,143.2,0.05132535]
[1768763095879,16.57863878,143.23,143.2,0.05132535]
[1768763096084,280.61863878,143.23,143.2,0.05132535]
[1768763098587,15.13539239,143.25,143.2,0.05132535]
[1768763098789,279.17539239,143.25,143.2,0.05132535]
[1768763099294,15.13539239,143.24,143.2,0.05132535]
[1768763100683,17.24204888,143.28,143.21,15.79833761]
[1768763100880,15.13539239,143.26,143.21,15.79833761]
[1768763101084,15.13539239,143.26,143.2,15.79833761]
[1768763101283,264.04,143.26,143.21,22.08483761]
[1768763101487,264.04,143.27,143.22,0.05152871]
[1768763101690,17.24204888,143.28,143.23,15.79833761]
[1768763101993,281.28204888,143.28,143.23,15.79833761]
[1768763102295,17.24204888,143.28,143.23,15.79833761]
[1768763102483,32.37744127,143.28,143.22,0.05152871]
[1768763102686,15.13539239,143.27,143.22,0.05152871]
[1768763102887,15.13539239,143.22,143.16,15.79833761]
[1768763103087,280.90381872,143.24,143.16,15.79833761]
[1768763103282,264.02,143.26,143.19,15.79833761]
[1768763103495,279.15539239,143.26,143.19,15.79833761]
[1768763103687,15.13539239,143.26,143.19,15.79833761]
[1768763104898,15.13539239,143.26,143.19,22.08563761]
[1768763105093,15.13539239,143.26,143.19,15.79833761]
[1768763105396,16.88381872,143.25,143.19,15.79833761]
[1768763105587,15.13539239,143.25,143.19,15.79833761]
[1768763105791,16.88381872,143.25,143.19,15.79833761]
[1768763108799,15.13539239,143.25,143.19,15.79833761]
[1768763108997,16.88381872,143.25,143.19,15.79833761]
[1768763110396,1.74842633,143.23,143.16,22.08683761]
[1768763110602,16.88381872,143.23,143.16,22.08683761]
[1768763112713,16.88381872,143.23,143.16,15.79833761]
[1768763113006,16.88381872,143.23,143.16,22.232689]
[1768763113007,15.13539239,143.23,143.16,22.232689]
[1768763113214,16.88381872,143.23,143.16,15.79833761]
[1768763113614,15.13539239,143.23,143.16,15.79833761]
[1768763113912,16.88381872,143.23,143.16,15.79833761]
[1768763116913,23.16971872,143.23,143.16,15.79833761]
[1768763118012,14.72103775,143.22,143.16,15.79833761]
[1768763118213,16.46946408,143.21,143.13,22.232689]
[1768763118402,16.51405691,143.21,143.14,15.79833761]
[1768763119813,22.80075691,143.21,143.14,15.79833761]
[1768763120315,21.05233058,143.21,143.14,15.79833761]
[1768763120508,22.80075691,143.21,143.14,15.79833761]
[1768763123610,22.80075691,143.21,143.14,22.23800354]
[1768763124516,14.12051223,143.2,143.14,22.23800354]
[1768763125510,14.12051223,143.2,143.15,14.28668901]
[1768763126119,1.74842633,143.19,143.13,20.72635494]
[1768763126722,15.86893856,143.19,143.13,20.72635494]
[1768763127220,14.12051223,143.18,143.13,20.72635494]
[1768763127420,14.12051223,143.18,143.13,14.28668901]
[1768763128122,5.38661593,143.18,143.13,20.72635494]
[1768763130924,5.38661593,143.18,143.11,84.01715494]
[1768763132224,7.05567548,143.17,143.11,84.01715494]
[1768763132821,5.26539001,143.16,143.1,12.73106593]
[1768763133018,5.26539001,143.16,143.1,6.2914]
[1768763133619,5.26539001,143.16,143.1,20.57808901]
[1768763134324,5.26539001,143.16,143.1,14.28668901]
[1768763136628,7.01381634,143.16,143.1,14.28668901]
[1768763139521,5.20486951,143.15,143.08,77.36185275]
[1768763140527,5.20486951,143.15,143.09,14.06975275]
[1768763143725,6.92154957,143.18,143.11,14.06975275]
[1768763144125,5.17312324,143.18,143.11,14.06975275]
[1768763144426,1.74842633,143.17,143.11,14.06975275]
[1768763144632,6.91383959,143.17,143.11,14.06975275]
[1768763145533,13.20233959,143.17,143.11,14.06975275]
[1768763145829,6.90621816,143.15,143.09,14.06975275]
[1768763148935,5.13544877,143.14,143.07,14.06975275]
[1768763149138,5.13544877,143.12,143.06,57.0]
[1768763149330,6.8838751,143.12,143.05,278.14975275]
[1768763149837,6.8838751,143.12,143.06,14.06975275]
[1768763150840,6.86940417,143.15,143.06,14.06975275]
[1768763151037,6.86940417,143.15,143.07,15.81817908]
[1768763151944,5.12097784,143.15,143.08,14.06975275]
[1768763154142,5.12097784,143.15,143.09,15.98173746]
[1768763154841,5.12097784,143.15,143.09,15.98351663]
[1768763158645,5.12097784,143.15,143.09,14.23331113]
[1768763160244,6.2885,143.17,143.1,14.23331113]
[1768763160450,6.2885,143.17,143.1,15.98351663]
[1768763160947,5.04029197,143.15,143.08,14.23331113]
[1768763161748,11.32969197,143.15,143.08,14.23331113]
[1768763162438,5.03403095,143.13,143.06,14.23331113]
[1768763163851,6.2908,143.12,143.06,14.23331113]
[1768763164143,11.31252381,143.12,143.06,14.23331113]
[1768763164547,13.06272931,143.12,143.06,14.23331113]
[1768763167659,11.31252381,143.12,143.06,14.23331113]
[1768763171847,4.97524275,143.11,143.04,14.23331113]
[1768763173758,6.72544825,143.11,143.04,14.23331113]
[1768763174266,4.96427833,143.1,143.04,14.23331113]
[1768763177463,11.25597833,143.1,143.04,14.23331113]
[1768763181568,4.92286841,143.09,143.04,14.23331113]
[1768763182461,6.67307391,143.09,143.04,14.23331113]
[1768763183466,6.67307391,143.09,143.02,257.44062875]
[1768763183869,6.67307391,143.09,143.03,13.9877291]
[1768763185065,4.90310567,143.08,143.02,243.45289965]
[1768763185569,4.90310567,143.08,143.02,257.44062875]
[1768763186768,11.19560567,143.08,143.02,257.44062875]
[1768763186970,4.90310567,143.08,143.02,257.44062875]
[1768763187771,6.293,143.07,143.02,257.44062875]
[1768763187972,6.293,143.07,143.02,13.9877291]
[1768763188270,0.05337492,143.06,143.04,0.05184955]
[1768763189776,6.34687492,143.06,143.0,13.9877291]
[1768763190268,6.2946,143.03,143.0,2.91e-05]
[1768763190470,22.56101835,143.03,142.93,247.39605787]
[1768763190673,14.51621285,143.02,142.94,1.7502055]
[1768763191372,264.26,143.08,142.98,1.7502055]
[1768763191373,14.51621285,143.08,142.98,1.7502055]
[1768763191668,16.26641835,143.08,142.98,1.7502055]
[1768763191871,16.26641835,143.08,142.98,266.0102055]
[1768763192070,6.293,143.07,142.98,266.0102055]
[1768763192272,6.293,143.07,142.99,13.9877291]
[1768763192667,20.80921285,143.07,142.99,13.9877291]
[1768763193070,0.04631669,143.04,142.99,13.9877291]
[1768763194578,6.34061669,143.04,142.99,13.9877291]
[1768763195274,0.04631669,143.04,142.99,13.9877291]
[1768763195476,0.04631669,143.04,143.0,0.04636711]
[1768763199576,13.87770938,143.08,143.0,15.32392717]
[1768763199778,15.62791488,143.1,143.0,15.32392717]
[1768763200078,13.87770938,143.09,143.01,13.52735456]
[1768763200384,13.87770938,143.09,143.01,15.27756006]
[1768763200883,13.87770938,143.09,143.01,13.52735456]